fUSD/lending_fUSD_20250322
["ID","MTS","AMOUNT","RATE_DAILY","PERIOD"]
[356527327,1742616646592,-573.80168816,0.00046575,120]
[356527328,1742616646601,-500.0,0.00046575,120]
[356527329,1742616646611,-167.86477888,0.00046575,120]
[356527330,1742616646620,-3155.94,0.00046575,120]
[356527331,1742616646630,-500.0,0.00046575,120]
[356527332,1742616646639,-500.0,0.00046575,120]
[356527333,1742616646649,-155.95485,0.00046575,14]
[356527334,1742616646658,-500.0,0.00046575,120]
[356527335,1742616646874,-1190.37,0.00046575,120]
[356527336,1742616646884,-500.0,0.00046575,120]
[356527337,1742616646896,-500.0,0.00046575,120]
[356527338,1742616646906,-563.97,0.00046575,120]
[356527339,1742616646916,-1001.81,0.00046575,120]
[356527340,1742616646926,-771.49,0.00046575,120]
[356527341,1742616646935,-500.0,0.00046575,120]
[356527342,1742616646945,-500.0,0.00046575,120]
[356527343,1742616646955,-500.0,0.00046575,120]
[356527344,1742616646965,-444.61173888,0.00046575,2]
[356527345,1742616646974,-1314.99,0.00046575,120]
[356527346,1742616646984,-500.0,0.00046575,120]
[356527347,1742616646993,-575.36316181,0.00046575,120]
[356527348,1742616647002,-500.0,0.00046575,120]
[356527349,1742616647012,-500.0,0.00046575,120]
[356527350,1742616647022,-500.0,0.00046575,120]
[356527351,1742616647031,-500.0,0.00046575,120]
[356527352,1742616647041,-771.98,0.00046575,120]
[356527353,1742616647051,-500.0,0.00046575,120]
[356527354,1742616647060,-500.0,0.00046575,120]
[356527355,1742616647070,-500.0,0.00046575,120]
[356527356,1742616647079,-500.0,0.00046575,120]
[356527357,1742616647089,-840.77,0.00046575,120]
[356527358,1742616647099,-1448.45,0.00046575,120]
[356527359,1742616647108,-500.0,0.00046575,120]
[356527360,1742616647117,-500.0,0.00046575,120]
[356527361,1742616647127,-505.28954291,0.00046575,120]
[356527362,1742616647136,-1247.82,0.00046575,120]
[356527363,1742616647145,-985.89,0.00046575,120]
[356527364,1742616647155,-500.0,0.00046575,120]
[356527365,1742616647164,-646.49,0.00046575,120]
[356527366,1742616647173,-500.0,0.00046575,120]
[356527367,1742616647183,-500.0,0.00046575,120]
[356527368,1742616647193,-500.0,0.00046575,120]
[356527369,1742616647202,-159.971159,0.00046575,14]
[356527370,1742616647211,-500.0,0.00046575,120]
[356527371,1742616647220,-500.49,0.00046575,120]
[356527372,1742616647230,-500.0,0.00046575,120]
[356527373,1742616647239,-500.0,0.00046575,120]
[356527374,1742616647249,-500.0,0.00046575,30]
[356527375,1742616647258,-500.0,0.00046575,120]
[356527376,1742616647268,-500.0,0.00046575,30]
[356527377,1742616647277,-500.0,0.00046575,120]
[356527378,1742616647287,-500.0,0.00046575,120]
[356527379,1742616647297,-2821.68,0.00046575,120]
[356527380,1742616647306,-500.0,0.00046575,120]
[356527381,1742616647316,-171.754562,0.00046575,14]
[356527382,1742616647325,-618.89,0.00046575,120]
[356527383,1742616647335,-500.0,0.00046575,120]
[356527384,1742616647345,-500.0,0.00046575,120]
[356527385,1742616647354,-500.0,0.00046575,120]
[356527386,1742616647364,-2343.82,0.00046575,120]
[356527387,1742616647373,-1654.42,0.00046575,7]
[356527388,1742616647383,-500.0,0.00046575,120]
[356527389,1742616647392,-500.0,0.00046575,120]
[356527390,1742616647402,-500.0,0.00046575,120]
[356527391,1742616647411,-500.0,0.00046575,120]
[356527392,1742616647420,-500.0,0.00046575,120]
[356527393,1742616647430,-500.0,0.00046575,120]
[356527394,1742616647440,-678.84,0.00046575,120]
[356527395,1742616647449,-500.0,0.00046575,120]
[356527396,1742616647462,-501.71,0.00046575,120]
[356527397,1742616647472,-1394.15,0.00046575,120]
[356527398,1742616647485,-500.0,0.00046575,120]
[356527399,1742616647495,-500.0,0.00046575,120]
[356527400,1742616647505,-500.0,0.00046575,120]
[356527401,1742616647515,-899.21,0.00046575,120]
[356527402,1742616647524,-500.0,0.00046575,120]
[356527403,1742616647535,-500.0,0.00046575,120]
[356527404,1742616647544,-500.0,0.00046575,120]
[356527405,1742616647554,-1052.01,0.00046575,120]
[356527406,1742616647564,-500.0,0.00046575,120]
[356527407,1742616647574,-553.79,0.00046575,120]
[356527408,1742616647584,-381.23279552,0.00046575,120]
[356527409,1742616647594,-500.0,0.00046575,120]
[356527410,1742616647604,-500.0,0.00046575,120]
[356527411,1742616647613,-314.67032131,0.00046575,120]
[356527412,1742616647623,-500.0,0.00046575,120]
[356527413,1742616647633,-500.0,0.00046575,120]
[356527414,1742616647643,-500.0,0.00046575,120]
[356527415,1742616647652,-500.0,0.00046575,120]
[356527416,1742616647662,-500.0,0.00046575,120]
[356527417,1742616647671,-882.94,0.00046575,120]
[356527418,1742616647680,-500.0,0.00046575,120]
[356527419,1742616647689,-500.0,0.00046575,120]
[356527420,1742616647698,-1138.71,0.00046575,120]
[356527421,1742616647707,-500.0,0.00046575,120]
[356527422,1742616647716,-947.97,0.00046575,120]
[356527423,1742616647725,-500.0,0.00046575,120]
[356527424,1742616647734,-544.49,0.00046575,120]
[356527425,1742616647744,-516.57970875,0.00046575,120]
[356527426,1742616647754,-500.0,0.00046575,120]
[356527427,1742616647763,-500.0,0.00046575,120]
[356527428,1742616647772,-964.03,0.00046575,120]
[356527429,1742616647781,-500.0,0.00046575,120]
[356527430,1742616647790,-426.26984648,0.00046575,120]
[356527431,1742616647799,-500.0,0.00046575,120]
[356527432,1742616647808,-1070.59,0.00046575,120]
[356527433,1742616647817,-547.51,0.00046575,120]
[356527434,1742616647826,-359.97,0.00046575,120]
[356527435,1742616647836,-792.99,0.00046575,120]
[356527436,1742616647847,-500.0,0.00046575,120]
[356527437,1742616647856,-602.25,0.00046575,120]
[356527438,1742616647866,-500.0,0.00046575,120]
[356527439,1742616647876,-1087.77,0.00046575,120]
[356527440,1742616647885,-628.8,0.00046575,120]
[356527441,1742616647895,-1012.79,0.00046575,120]
[356527442,1742616647904,-586.37,0.00046575,120]
[356527443,1742616647914,-500.0,0.00046575,120]
[356527444,1742616647923,-500.0,0.00046575,120]
[356527445,1742616647932,-500.0,0.00046575,120]
[356527446,1742616647942,-938.81,0.00046575,120]
[356527447,1742616647951,-500.0,0.00046575,120]
[356527448,1742616647960,-1408.73,0.00046575,120]
[356527449,1742616647970,-609.11,0.00046575,120]
[356527450,1742616647979,-638.4,0.00046575,120]
[356527451,1742616647988,-500.0,0.00046575,120]
[356527452,1742616647998,-806.06,0.00046575,120]
[356527453,1742616648007,-628.7246203,0.00046575,120]
[356527454,1742616648018,-1448.18,0.00046575,120]
[356527455,1742616648028,-500.0,0.00046575,120]
[356527456,1742616648038,-151.0,0.00046575,14]
[356527457,1742616648047,-151.0,0.00046575,14]
[356527458,1742616648056,-503.67365826,0.00046575,120]
[356527459,1742616648066,-156.369315,0.00046575,14]
[356527460,1742616648075,-500.0,0.00046575,120]
[356527461,1742616648085,-500.0,0.00046575,120]
[356527462,1742616648094,-500.0,0.00046575,120]
[356527463,1742616648103,-500.0,0.00046575,120]
[356527464,1742616648113,-506.7123564,0.00046575,120]
[356527465,1742616648122,-506.3296823,0.00046575,120]
[356527466,1742616648131,-804.63,0.00046575,120]
[356527467,1742616648141,-644.7,0.00046575,120]
[356527468,1742616648150,-500.0,0.00046575,120]
[356527469,1742616648159,-527.23254808,0.00046575,120]
[356527470,1742616648168,-519.2,0.00046575,120]
[356527471,1742616648178,-500.0,0.00046575,120]
[356527472,1742616648187,-712.96,0.00046575,120]
[356527473,1742616648197,-500.0,0.00046575,120]
[356527474,1742616648206,-500.0,0.00046575,120]
[356527475,1742616648215,-500.0,0.00046575,120]
[356527476,1742616648224,-847.57,0.00046575,120]
[356527477,1742616648234,-847.57,0.00046575,120]
[356527478,1742616648243,-847.57,0.00046575,120]
[356527479,1742616648252,-847.57,0.00046575,120]
[356527480,1742616648262,-500.0,0.00046575,120]
[356527481,1742616648271,-1577.11,0.00046575,10]
[356527482,1742616648280,-500.0,0.00046575,120]
[356527483,1742616648290,-1017.58,0.00046575,120]
[356527484,1742616648299,-500.0,0.00046575,120]
[356527485,1742616648308,-500.0,0.00046575,120]
[356527486,1742616648318,-748.56,0.00046575,120]
[356527487,1742616648327,-504.77462109,0.00046575,120]
[356527488,1742616648337,-1209.92,0.00046575,120]
[356527489,1742616648347,-500.0,0.00046575,120]
[356527490,1742616648358,-500.0,0.00046575,120]
[356527491,1742616648367,-500.0,0.00046575,120]
[356527492,1742616648378,-500.0,0.00046575,120]
[356527493,1742616648387,-500.0,0.00046575,120]
[356527494,1742616648397,-500.0,0.00046575,120]
[356527495,1742616648407,-500.0,0.00046575,120]
[356527496,1742616648416,-500.0,0.00046575,120]
[356527497,1742616648426,-732.58,0.00046575,120]
[356527498,1742616648436,-500.0,0.00046575,120]
[356527499,1742616648445,-677.47,0.00046575,120]
[356527500,1742616648457,-509.43991868,0.00046575,120]
[356527501,1742616648467,-930.33,0.00046575,120]
[356527502,1742616648476,-500.0,0.00046575,120]
[356527503,1742616648485,-500.0,0.00046575,120]
[356527504,1742616648494,-500.0,0.00046575,120]
[356527505,1742616648505,-424.63243457,0.00046575,120]
[356527506,1742616648514,-613.38,0.00046575,120]
[356527507,1742616648524,-647.13,0.00046575,120]
[356527508,1742616648536,-500.0,0.00046575,120]
[356527509,1742616648545,-569.95,0.00046575,120]
[356527510,1742616648555,-1458.87,0.00046575,120]
[356527511,1742616648565,-1036.27,0.00046575,120]
[356527512,1742616648574,-500.0,0.00046575,120]
[356527513,1742616648585,-295.2,0.00046575,7]
[356527514,1742616648594,-886.86,0.00046575,120]
[356527515,1742616648603,-765.09,0.00046575,120]
[356527516,1742616648613,-500.0,0.00046575,120]
[356527517,1742616648623,-500.0,0.00046575,120]
[356527518,1742616648632,-500.0,0.00046575,120]
[356527519,1742616648643,-500.0,0.00046575,120]
[356527520,1742616648652,-520.05,0.00046575,120]
[356527521,1742616648662,-874.28,0.00046575,120]
[356527522,1742616648672,-500.0,0.00046575,120]
[356527523,1742616648681,-572.51784893,0.00046575,120]
[356527524,1742616648691,-500.0,0.00046575,120]
[356527525,1742616648700,-500.0,0.00046575,120]
[356527526,1742616648710,-500.0,0.00046575,120]
[356527527,1742616648720,-500.0,0.00046575,120]
[356527528,1742616648730,-500.0,0.00046575,120]
[356527529,1742616648739,-500.0,0.00046575,120]
[356527530,1742616648749,-916.1,0.00046575,120]
[356527531,1742616648759,-870.56,0.00046575,120]
[356527532,1742616648768,-704.12,0.00046575,120]
[356527533,1742616648778,-999.52,0.00046575,120]
[356527534,1742616648787,-500.0,0.00046575,120]
[356527535,1742616648797,-500.0,0.00046575,120]
[356527536,1742616648806,-571.92,0.00046575,120]
[356527537,1742616648815,-500.0,0.00046575,120]
[356527538,1742616648824,-500.0,0.00046575,120]
[356527539,1742616648833,-898.97,0.00046575,120]
[356527540,1742616648842,-500.0,0.00046575,120]
[356527541,1742616648852,-500.0,0.00046575,120]
[356527542,1742616648865,-500.0,0.00046575,120]
[356527543,1742616648875,-661.69,0.00046575,120]
[356527544,1742616648885,-500.0,0.00046575,120]
[356527545,1742616648895,-500.0,0.00046575,120]
[356527546,1742616648904,-763.58,0.00046575,120]
[356527547,1742616648914,-500.0,0.00046575,120]
[356527548,1742616648923,-853.96,0.00046575,120]
[356527549,1742616648933,-719.04,0.00046575,120]
[356527550,1742616648943,-500.0,0.00046575,120]
[356527551,1742616648952,-500.0,0.00046575,120]
[356527552,1742616648961,-838.67,0.00046575,120]
[356527553,1742616648971,-335.86806402,0.00046575,120]
[356527554,1742616648982,-500.0,0.00046575,120]
[356527555,1742616648991,-500.0,0.00046575,120]
[356527556,1742616649001,-1064.5,0.00046575,120]
[356527557,1742616649011,-545.27327459,0.00046575,120]
[356527558,1742616649021,-648.56024525,0.00046575,120]
[356527559,1742616649032,-966.88,0.00046575,120]
[356527560,1742616649042,-500.0,0.00046575,120]
[356527561,1742616649051,-500.0,0.00046575,120]
[356527562,1742616649061,-1601.34,0.00046575,120]
[356527563,1742616649070,-500.0,0.00046575,120]
[356527564,1742616649080,-500.0,0.00046575,120]
[356527565,1742616649089,-500.0,0.00046575,120]
[356527566,1742616649099,-500.0,0.00046575,120]
[356527567,1742616649109,-500.0,0.00046575,120]
[356527568,1742616649118,-625.25,0.00046575,120]
[356527569,1742616649128,-500.0,0.00046575,120]
[356527570,1742616649138,-533.56,0.00046575,120]
[356527571,1742616649154,-500.0,0.00046575,120]
[356527572,1742616649167,-500.0,0.00046575,120]
[356527573,1742616649176,-500.0,0.00046575,120]
[356527574,1742616649185,-500.0,0.00046575,120]
[356527575,1742616649194,-500.0,0.00046575,120]
[356527576,1742616649204,-678.85,0.00046575,120]
[356527577,1742616649214,-500.0,0.00046575,120]
[356527578,1742616649223,-1427.26,0.00046575,120]
[356527579,1742616649232,-500.0,0.00046575,120]
[356527580,1742616649309,-513.28177406,0.00046575,120]
[356527581,1742616649318,-1000.0,0.00046575,120]
[356527582,1742616649327,-500.0,0.00046575,120]
[356527583,1742616649336,-286.290187,0.00046575,14]
[356527584,1742616649346,-500.0,0.00046575,120]
[356527585,1742616649355,-500.0,0.00046575,120]
[356527586,1742616649364,-925.72,0.00046575,120]
[356527587,1742616649373,-580.91431001,0.00046575,120]
[356527588,1742616649383,-500.0,0.00046575,120]
[356527589,1742616649392,-876.13,0.00046575,120]
[356527590,1742616649401,-500.0,0.00046575,120]
[356527591,1742616649410,-515.26562375,0.00046575,120]
[356527592,1742616649420,-597.01,0.00046575,120]
[356527593,1742616649429,-500.0,0.00046575,120]
[356527594,1742616649438,-500.0,0.00046575,120]
[356527595,1742616649447,-500.0,0.00046575,120]
[356527596,1742616649460,-773.96,0.00046575,120]
[356527597,1742616649469,-1188.43,0.00046575,120]
[356527598,1742616649478,-500.0,0.00046575,120]
[356527599,1742616649487,-500.0,0.00046575,120]
[356527600,1742616649497,-500.0,0.00046575,120]
[356527601,1742616649507,-500.0,0.00046575,120]
[356527602,1742616649515,-1071.2,0.00046575,120]
[356527603,1742616649525,-500.0,0.00046575,120]
[356527604,1742616649534,-519.08579316,0.00046575,120]
[356527605,1742616649544,-500.0,0.00046575,120]
[356527606,1742616649553,-500.0,0.00046575,120]
[356527607,1742616649562,-645.24,0.00046575,120]
[356527608,1742616649571,-500.0,0.00046575,120]
[356527609,1742616649580,-500.0,0.00046575,120]
[356527610,1742616649589,-500.0,0.00046575,120]
[356527611,1742616649599,-784.31,0.00046575,120]
[356527612,1742616649609,-504.74880231,0.00046575,120]
[356527613,1742616649618,-652.3,0.00046575,120]
[356527614,1742616649627,-500.0,0.00046575,120]
[356527615,1742616649636,-500.0,0.00046575,120]
[356527616,1742616649645,-550.46,0.00046575,120]
[356527617,1742616649654,-509.95676998,0.00046575,120]
[356527618,1742616649663,-500.0,0.00046575,120]
[356527619,1742616649672,-2052.19,0.00046575,120]
[356527620,1742616649681,-500.0,0.00046575,120]
[356527621,1742616649690,-500.0,0.00046575,120]
[356527622,1742616649699,-500.0,0.00046575,120]
[356527623,1742616649708,-500.0,0.00046575,120]
[356527624,1742616649717,-500.0,0.00046575,120]
[356527625,1742616649726,-320.19766122,0.00046575,120]
[356527626,1742616649734,-907.25,0.00046575,120]
[356527627,1742616649744,-1339.88,0.00046575,120]
[356527628,1742616649753,-500.0,0.00046575,120]
[356527629,1742616649762,-1278.73,0.00046575,120]
[356527630,1742616649772,-500.0,0.00046575,120]
[356527631,1742616649782,-500.0,0.00046575,120]
[356527632,1742616649791,-500.0,0.00046575,20]
[356527633,1742616649800,-500.0,0.00046575,120]
[356527634,1742616649809,-1417.13,0.00046575,120]
[356527635,1742616649818,-589.48,0.00046575,120]
[356527636,1742616649827,-1085.81,0.00046575,120]
[356527637,1742616649836,-523.88802653,0.00046575,120]
[356527638,1742616649846,-500.0,0.00046575,120]
[356527639,1742616649855,-944.25,0.00046575,120]
[356527640,1742616649865,-990.34,0.00046575,120]
[356527641,1742616649873,-500.0,0.00046575,120]
[356527642,1742616649882,-500.0,0.00046575,120]
[356527643,1742616649891,-500.0,0.00046575,120]
[356527644,1742616649899,-1241.57,0.00046575,120]
[356527645,1742616649909,-500.0,0.00046575,120]
[356527646,1742616649918,-500.0,0.00046575,120]
[356527647,1742616649927,-500.0,0.00046575,120]
[356527648,1742616649935,-500.0,0.00046575,120]
[356527649,1742616649945,-500.0,0.00046575,120]
[356527650,1742616649954,-512.25556503,0.00046575,120]
[356527651,1742616649963,-500.0,0.00046575,120]
[356527652,1742616649972,-500.0,0.00046575,120]
[356527653,1742616649982,-500.0,0.00046575,120]
[356527654,1742616649991,-500.0,0.00046575,120]
[356527655,1742616650000,-500.46,0.00046575,120]
[356527657,1742616650010,-1020.81,0.00046575,120]
[356527658,1742616650018,-1643.03,0.00046575,120]
[356527659,1742616650027,-500.0,0.00046575,120]
[356527660,1742616650036,-500.0,0.00046575,120]
[356527661,1742616650045,-967.78,0.00046575,120]
[356527662,1742616650055,-500.0,0.00046575,120]
[356527663,1742616650064,-2098.74,0.00046575,120]
[356527664,1742616650073,-500.0,0.00046575,120]
[356527665,1742616650082,-1067.52,0.00046575,120]
[356527666,1742616650091,-1075.71,0.00046575,120]
[356527667,1742616650101,-500.0,0.00046575,120]
[356527668,1742616650110,-500.0,0.00046575,120]
[356527669,1742616650119,-1060.81,0.00046575,120]
[356527670,1742616650128,-823.3,0.00046575,120]
[356527671,1742616650137,-500.0,0.00046575,120]
[356527672,1742616650146,-524.570351,0.00046575,120]
[356527673,1742616650156,-865.99,0.00046575,120]
[356527674,1742616650165,-1242.87,0.00046575,120]
[356527675,1742616650174,-503.65,0.00046575,120]
[356527676,1742616650183,-1053.04,0.00046575,120]
[356527677,1742616650192,-1040.26,0.00046575,120]
[356527678,1742616650201,-500.0,0.00046575,120]
[356527679,1742616650211,-500.0,0.00046575,120]
[356527680,1742616650220,-500.0,0.00046575,120]
[356527681,1742616650229,-500.0,0.00046575,120]
[356527682,1742616650238,-1500.0,0.00046575,120]
[356527683,1742616650248,-1386.75,0.00046575,120]
[356527684,1742616650257,-500.0,0.00046575,120]
[356527685,1742616650266,-724.55,0.00046575,120]
[356527686,1742616650276,-500.0,0.00046575,120]
[356527687,1742616650285,-500.0,0.00046575,120]
[356527688,1742616650294,-1399.73,0.00046575,120]
[356527689,1742616650303,-764.4,0.00046575,120]
[356527690,1742616650312,-500.0,0.00046575,120]
[356527691,1742616650321,-788.42,0.00046575,120]
[356527692,1742616650330,-667.61,0.00046575,120]
[356527693,1742616650339,-624.22016994,0.00046575,120]
[356527694,1742616650348,-2799.34,0.00046575,120]
[356527695,1742616650357,-510.19363541,0.00046575,120]
[356527696,1742616650366,-996.48,0.00046575,120]
[356527697,1742616650375,-201.58154785,0.00046575,120]
[356527698,1742616650384,-500.0,0.00046575,120]
[356527699,1742616650393,-544.16,0.00046575,120]
[356527700,1742616650403,-720.84,0.00046575,120]
[356527701,1742616650412,-1345.54,0.00046575,120]
[356527702,1742616650421,-4448.73,0.00046575,120]
[356527703,1742616650431,-746.16,0.00046575,120]
[356527704,1742616650444,-500.0,0.00046575,120]
[356527705,1742616650453,-893.64,0.00046575,120]
[356527706,1742616650468,-1214.65,0.00046575,120]
[356527707,1742616650477,-1090.43,0.00046575,120]
[356527708,1742616650486,-715.16,0.00046575,120]
[356527709,1742616650495,-500.0,0.00046575,120]
[356527710,1742616650504,-907.66,0.00046575,120]
[356527711,1742616650514,-5330.54,0.00046575,120]
[356527712,1742616650523,-714.33,0.00046575,120]
[356527713,1742616650532,-500.0,0.00046575,120]
[356527714,1742616650542,-500.0,0.00046575,120]
[356527715,1742616650552,-2018.23,0.00046575,120]
[356527716,1742616650562,-511.39346573,0.00046575,120]
[356527717,1742616650571,-500.0,0.00046575,120]
[356527718,1742616650580,-500.0,0.00046575,120]
[356527719,1742616650589,-500.0,0.00046575,30]
[356527720,1742616650598,-500.0,0.00046575,120]
[356527721,1742616650607,-955.62,0.00046575,120]
[356527722,1742616650617,-640.59,0.00046575,120]
[356527723,1742616650626,-2028.81,0.00046575,120]
[356527724,1742616650635,-500.0,0.00046575,120]
[356527725,1742616650644,-1658.22,0.00046575,120]
[356527726,1742616650654,-500.0,0.00046575,120]
[356527727,1742616650664,-915.12,0.00046575,120]
[356527728,1742616650673,-1139.75,0.00046575,120]
[356527729,1742616650683,-500.0,0.00046575,120]
[356527730,1742616650692,-1000.0,0.00046575,120]
[356527731,1742616650702,-500.0,0.00046575,120]
[356527732,1742616650711,-778.86,0.00046575,120]
[356527733,1742616650720,-995.55,0.00046575,120]
[356527734,1742616650729,-500.0,0.00046575,120]
[356527735,1742616650738,-500.0,0.00046575,120]
[356527736,1742616650747,-1485.82,0.00046575,120]
[356527737,1742616650757,-738.27,0.00046575,120]
[356527738,1742616650767,-2087.31,0.00046575,120]
[356527739,1742616650775,-1030.1,0.00046575,120]
[356527740,1742616650785,-151.0,0.00046575,14]
[356527741,1742616650794,-151.0,0.00046575,14]
[356527742,1742616650804,-151.0,0.00046575,14]
[356527743,1742616650814,-500.0,0.00046575,120]
[356527744,1742616650823,-151.0,0.00046575,14]
[356527745,1742616650832,-2277.17,0.00046575,120]
[356527746,1742616650841,-151.0,0.00046575,14]
[356527747,1742616650851,-260.504563,0.00046575,14]
[356527748,1742616650860,-500.0,0.00046575,120]
[356527749,1742616650869,-500.0,0.00046575,120]
[356527750,1742616650879,-1387.81,0.00046575,120]
[356527751,1742616650888,-1888.99,0.00046575,120]
[356527752,1742616650897,-519.58984271,0.00046575,120]
[356527753,1742616650906,-500.0,0.00046575,120]
[356527754,1742616650915,-518.17,0.00046575,120]
[356527755,1742616650925,-500.0,0.00046575,120]
[356527756,1742616650934,-500.0,0.00046575,120]
[356527757,1742616650943,-500.0,0.00046575,120]
[356527758,1742616650952,-1072.91,0.00046575,120]
[356527759,1742616650962,-607.33,0.00046575,120]
[356527760,1742616650971,-587.26,0.00046575,120]
[356527761,1742616650980,-500.0,0.00046575,120]
[356527762,1742616650989,-500.0,0.00046575,120]
[356527763,1742616650999,-500.0,0.00046575,120]
[356527764,1742616651008,-992.69,0.00046575,120]
[356527765,1742616651017,-1035.51,0.00046575,120]
[356527766,1742616651026,-500.0,0.00046575,120]
[356527767,1742616651035,-500.0,0.00046575,120]
[356527768,1742616651044,-749.42,0.00046575,120]
[356527769,1742616651053,-2191.81,0.00046575,120]
[356527770,1742616651062,-509.4,0.00046575,120]
[356527771,1742616651071,-505.95,0.00046575,120]
[356527772,1742616651080,-2351.91,0.00046575,120]
[356527773,1742616651089,-843.27,0.00046575,120]
[356527774,1742616651099,-734.95,0.00046575,120]
[356527775,1742616651108,-500.0,0.00046575,120]
[356527776,1742616651118,-500.0,0.00046575,120]
[356527777,1742616651127,-500.0,0.00046575,120]
[356527778,1742616651136,-500.0,0.00046575,120]
[356527779,1742616651146,-500.0,0.00046575,120]
[356527780,1742616651155,-500.0,0.00046575,120]
[356527781,1742616651182,-500.0,0.00046575,120]
[356527782,1742616651191,-1054.58,0.00046575,120]
[356527783,1742616651200,-605.54,0.00046575,120]
[356527784,1742616651209,-586.96,0.00046575,120]
[356527785,1742616651218,-565.106235,0.00046575,14]
[356527786,1742616651227,-500.0,0.00046575,120]
[356527787,1742616651236,-514.21879653,0.00046575,120]
[356527788,1742616651245,-565.106235,0.00046575,14]
[356527789,1742616651254,-565.106243,0.00046575,14]
[356527790,1742616651263,-500.0,0.00046575,120]
[356527791,1742616651272,-500.0,0.00046575,120]
[356527792,1742616651281,-500.0,0.00046575,120]
[356527793,1742616651290,-1008.24,0.00046575,120]
[356527794,1742616651299,-500.0,0.00046575,120]
[356527795,1742616651308,-526.77,0.00046575,120]
[356527796,1742616651317,-1478.72,0.00046575,120]
[356527797,1742616651327,-521.11491957,0.00046575,120]
[356527798,1742616651336,-998.41,0.00046575,120]
[356527799,1742616651345,-500.0,0.00046575,120]
[356527800,1742616651354,-780.51,0.00046575,120]
[356527801,1742616651363,-500.0,0.00046575,120]
[356527802,1742616651372,-5871.81,0.00046575,120]
[356527803,1742616651382,-743.24,0.00046575,120]
[356527804,1742616651392,-1272.2,0.00046575,120]
[356527805,1742616651402,-1283.23,0.00046575,120]
[356527806,1742616651411,-471.07324151,0.00046575,120]
[356527807,1742616651420,-582.27,0.00046575,120]
[356527808,1742616651430,-500.0,0.00046575,120]
[356527809,1742616651439,-582.27,0.00046575,120]
[356527810,1742616651448,-995.07,0.00046575,120]
[356527811,1742616651460,-500.0,0.00046575,120]
[356527812,1742616651470,-582.27,0.00046575,120]
[356527813,1742616651480,-995.07,0.00046575,120]
[356527814,1742616651489,-995.07,0.00046575,120]
[356527815,1742616651500,-6114.72,0.00046575,2]
[356527816,1742616651509,-151.0,0.00046575,14]
[356527817,1742616651519,-500.0,0.00046575,120]
[356527818,1742616651529,-661.71,0.00046575,120]
[356527819,1742616651538,-151.0,0.00046575,14]
[356527820,1742616651549,-151.0,0.00046575,14]
[356527821,1742616651559,-520.91,0.00046575,120]
[356527822,1742616651569,-151.0,0.00046575,14]
[356527823,1742616651579,-151.0,0.00046575,14]
[356527824,1742616651587,-151.0,0.00046575,14]
[356527825,1742616651597,-187.286829,0.00046575,14]
[356527826,1742616651607,-432.0853588,0.00046575,120]
[356527827,1742616651616,-500.0,0.00046575,120]